[Event "Titled Tuesday Blitz June 07 Early 2022"]
[White "Lagno, Kateryna"]
[Black "Lazavik, Denis"]
[WhiteFideId "14109336"]
[BlackFideId "13515110"]
[WhiteElo "2522"]
[BlackElo "2437"]
[Result "0-1"]
[Round "10"]
[TimeControl "180+1"]
[Date "2022.06.07"]
[WhiteClock "0:01:48"]
[BlackClock "0:02:26"]

1. e4 {[%clk 0:03:00]}  c5 {[%clk 0:03:00]} 2. Nf3 {[%clk 0:03:01]}  e6 {[%clk 0:03:00]} 3. d4 {[%clk 0:03:01]}  cxd4 {[%clk 0:03:01]} 4. Nxd4 {[%clk 0:03:01]}  Nc6 {[%clk 0:03:02]} 5. Nc3 {[%clk 0:03:01]}  Qc7 {[%clk 0:03:01]} 6. Be3 {[%clk 0:02:58]}  a6 {[%clk 0:03:01]} 7. a3 {[%clk 0:02:57]}  b5 {[%clk 0:02:58]} 8. Nxc6 {[%clk 0:02:53]}  Qxc6 {[%clk 0:02:59]} 9. Be2 {[%clk 0:02:46]}  Bb7 {[%clk 0:02:58]} 10. O-O {[%clk 0:02:45]}  Rc8 {[%clk 0:02:58]} 11. Qd4 {[%clk 0:02:24]}  Nf6 {[%clk 0:02:47]} 12. Bf3 {[%clk 0:02:21]}  Bc5 {[%clk 0:02:45]} 13. Qxc5 {[%clk 0:02:13]}  Qxc5 {[%clk 0:02:45]} 14. Bxc5 {[%clk 0:02:13]}  Rxc5 {[%clk 0:02:46]} 15. e5 {[%clk 0:02:02]}  Bxf3 {[%clk 0:02:44]} 16. exf6 {[%clk 0:02:02]}  Rg5 {[%clk 0:02:39]} 17. g3 {[%clk 0:01:57]}  gxf6 {[%clk 0:02:39]} 18. Rfe1 {[%clk 0:01:53]}  Ke7 {[%clk 0:02:36]} 19. Re3 {[%clk 0:01:52]}  Bc6 {[%clk 0:02:36]} 20. Ne4 {[%clk 0:01:47]}  Re5 {[%clk 0:02:33]} 21. Rae1 {[%clk 0:01:47]}  f5 {[%clk 0:02:29]} 22. Nd2 {[%clk 0:01:47]}  Rxe3 {[%clk 0:02:29]} 23. f3 {[%clk 0:01:48]}  Rxe1+ {[%clk 0:02:26]} 0-1


[Site "https://www.chess.com"]

[Event "Titled Tuesday Blitz June 07 Early 2022"]
[White "Narayanan, Srinath"]
[Black "Kamsky, Gata"]
[WhiteFideId "5018420"]
[BlackFideId "2000024"]
[WhiteElo "2472"]
[BlackElo "2645"]
[Result "1/2-1/2"]
[Round "10"]
[TimeControl "180+1"]
[Date "2022.06.07"]
[WhiteClock "0:00:09"]
[BlackClock "0:00:13"]

1. d4 {[%clk 0:03:00]}  Nf6 {[%clk 0:02:57]} 2. Nc3 {[%clk 0:03:00]}  d5 {[%clk 0:02:49]} 3. Bf4 {[%clk 0:03:00]}  c6 {[%clk 0:02:44]} 4. e3 {[%clk 0:02:58]}  g6 {[%clk 0:02:42]} 5. Nf3 {[%clk 0:02:44]}  Bg4 {[%clk 0:02:41]} 6. Be2 {[%clk 0:02:43]}  Bxf3 {[%clk 0:02:41]} 7. Bxf3 {[%clk 0:02:44]}  Bg7 {[%clk 0:02:41]} 8. h4 {[%clk 0:02:40]}  h5 {[%clk 0:02:39]} 9. Qd2 {[%clk 0:02:41]}  Nbd7 {[%clk 0:02:37]} 10. O-O-O {[%clk 0:02:41]}  b5 {[%clk 0:02:35]} 11. Qd3 {[%clk 0:02:35]}  Qa5 {[%clk 0:02:32]} 12. Kb1 {[%clk 0:02:35]}  Nb6 {[%clk 0:02:16]} 13. e4 {[%clk 0:02:12]}  b4 {[%clk 0:02:11]} 14. Ne2 {[%clk 0:02:12]}  dxe4 {[%clk 0:02:05]} 15. Bxe4 {[%clk 0:02:13]}  Nxe4 {[%clk 0:02:06]} 16. Qxe4 {[%clk 0:02:14]}  Qd5 {[%clk 0:02:06]} 17. Ng3 {[%clk 0:02:14]}  Qxe4 {[%clk 0:02:05]} 18. Nxe4 {[%clk 0:02:15]}  Nd5 {[%clk 0:02:04]} 19. Bg5 {[%clk 0:02:08]}  Rb8 {[%clk 0:01:58]} 20. Nc5 {[%clk 0:02:04]}  e6 {[%clk 0:01:42]} 21. Rhe1 {[%clk 0:02:03]}  Rb5 {[%clk 0:01:32]} 22. Rd3 {[%clk 0:01:56]}  O-O {[%clk 0:01:28]} 23. Ne4 {[%clk 0:01:32]}  a5 {[%clk 0:01:14]} 24. Kc1 {[%clk 0:01:29]}  Rfb8 {[%clk 0:01:11]} 25. Red1 {[%clk 0:01:18]}  a4 {[%clk 0:01:10]} 26. Nd6 {[%clk 0:01:04]}  Ra5 {[%clk 0:01:04]} 27. Rf3 {[%clk 0:01:03]}  Ra7 {[%clk 0:01:03]} 28. Nc4 {[%clk 0:01:01]}  a3 {[%clk 0:01:01]} 29. bxa3 {[%clk 0:00:50]}  bxa3 {[%clk 0:00:57]} 30. Rxa3 {[%clk 0:00:47]}  Rxa3 {[%clk 0:00:56]} 31. Nxa3 {[%clk 0:00:48]}  Nc3 {[%clk 0:00:55]} 32. Rd3 {[%clk 0:00:47]}  Bxd4 {[%clk 0:00:55]} 33. Kd2 {[%clk 0:00:26]}  Ne4+ {[%clk 0:00:52]} 34. Ke2 {[%clk 0:00:26]}  c5 {[%clk 0:00:36]} 35. Nc4 {[%clk 0:00:20]}  Nc3+ {[%clk 0:00:34]} 36. Kd2 {[%clk 0:00:19]}  Ne4+ {[%clk 0:00:27]} 37. Ke2 {[%clk 0:00:19]}  f6 {[%clk 0:00:27]} 38. Be3 {[%clk 0:00:19]}  e5 {[%clk 0:00:27]} 39. Rb3 {[%clk 0:00:15]}  Ra8 {[%clk 0:00:26]} 40. a3 {[%clk 0:00:14]}  Kf7 {[%clk 0:00:20]} 41. f3 {[%clk 0:00:13]}  Ng3+ {[%clk 0:00:19]} 42. Kd3 {[%clk 0:00:13]}  Nf5 {[%clk 0:00:18]} 43. Bd2 {[%clk 0:00:11]}  Nxh4 {[%clk 0:00:14]} 44. Rb7+ {[%clk 0:00:12]}  Ke6 {[%clk 0:00:14]} 45. Rb6+ {[%clk 0:00:12]}  Ke7 {[%clk 0:00:14]} 46. Rb7+ {[%clk 0:00:12]}  Ke6 {[%clk 0:00:13]} 47. Rb6+ {[%clk 0:00:13]}  Ke7 {[%clk 0:00:13]} 48. Rb7+ {[%clk 0:00:09]}  Ke6 {[%clk 0:00:13]} 1/2-1/2


[Site "https://www.chess.com"]

[Event "Titled Tuesday Blitz June 07 Early 2022"]
[White "Pires, Marcos Vinicius Torsani"]
[Black "Papasimakopoulos, Alexandros"]
[WhiteFideId "2118939"]
[BlackFideId "4244125"]
[WhiteElo "2273"]
[BlackElo "2340"]
[Result "0-1"]
[Round "10"]
[TimeControl "180+1"]
[Date "2022.06.07"]
[WhiteClock "0:00:03"]
[BlackClock "0:00:08"]

1. d4 {[%clk 0:03:00]}  f5 {[%clk 0:02:53]} 2. Bf4 {[%clk 0:03:00]}  e6 {[%clk 0:02:50]} 3. e3 {[%clk 0:02:59]}  Nf6 {[%clk 0:02:51]} 4. Nf3 {[%clk 0:03:00]}  d5 {[%clk 0:02:51]} 5. c4 {[%clk 0:02:59]}  Bd6 {[%clk 0:02:52]} 6. Bg3 {[%clk 0:02:57]}  c6 {[%clk 0:02:52]} 7. Nc3 {[%clk 0:02:56]}  O-O {[%clk 0:02:51]} 8. Bd3 {[%clk 0:02:55]}  Ne4 {[%clk 0:02:51]} 9. Bxd6 {[%clk 0:02:55]}  Qxd6 {[%clk 0:02:51]} 10. O-O {[%clk 0:02:56]}  Nd7 {[%clk 0:02:51]} 11. Qc2 {[%clk 0:02:54]}  Ndf6 {[%clk 0:02:51]} 12. Ne5 {[%clk 0:02:52]}  Bd7 {[%clk 0:02:47]} 13. c5 {[%clk 0:02:46]}  Nxc5 {[%clk 0:02:42]} 14. Nxd5 {[%clk 0:02:29]}  Nxd3 {[%clk 0:02:10]} 15. Nxf6+ {[%clk 0:02:28]}  gxf6 {[%clk 0:02:11]} 16. Nxd3 {[%clk 0:02:28]}  Rae8 {[%clk 0:02:04]} 17. Rfd1 {[%clk 0:02:20]}  Kh8 {[%clk 0:02:03]} 18. Qc5 {[%clk 0:02:17]}  Qb8 {[%clk 0:02:01]} 19. b4 {[%clk 0:02:12]}  a6 {[%clk 0:01:58]} 20. a4 {[%clk 0:02:11]}  Rf7 {[%clk 0:01:57]} 21. Rac1 {[%clk 0:02:03]}  Rg8 {[%clk 0:01:55]} 22. g3 {[%clk 0:02:03]}  Bc8 {[%clk 0:01:48]} 23. Nf4 {[%clk 0:02:00]}  Bd7 {[%clk 0:01:48]} 24. Rd2 {[%clk 0:01:59]}  Qf8 {[%clk 0:01:41]} 25. Qxf8 {[%clk 0:01:51]}  Rgxf8 {[%clk 0:01:39]} 26. Nd3 {[%clk 0:01:50]}  Kg7 {[%clk 0:01:39]} 27. Nc5 {[%clk 0:01:50]}  Bc8 {[%clk 0:01:39]} 28. b5 {[%clk 0:01:48]}  axb5 {[%clk 0:01:34]} 29. axb5 {[%clk 0:01:49]}  cxb5 {[%clk 0:01:35]} 30. Rb1 {[%clk 0:01:47]}  b6 {[%clk 0:01:35]} 31. Nd3 {[%clk 0:01:43]}  Bd7 {[%clk 0:01:36]} 32. Rc2 {[%clk 0:01:37]}  Ra8 {[%clk 0:01:30]} 33. Rc7 {[%clk 0:01:30]}  Be8 {[%clk 0:01:30]} 34. Rc3 {[%clk 0:01:19]}  Rfa7 {[%clk 0:01:28]} 35. Nf4 {[%clk 0:01:14]}  Bd7 {[%clk 0:01:24]} 36. d5 {[%clk 0:01:05]}  e5 {[%clk 0:01:24]} 37. Ne6+ {[%clk 0:01:04]}  Kf7 {[%clk 0:01:18]} 38. Kg2 {[%clk 0:00:59]}  Ra1 {[%clk 0:01:06]} 39. Rxa1 {[%clk 0:00:54]}  Rxa1 {[%clk 0:01:06]} 40. Rc7 {[%clk 0:00:55]}  Ke7 {[%clk 0:01:05]} 41. Rb7 {[%clk 0:00:51]}  Rd1 {[%clk 0:00:56]} 42. Nf8 {[%clk 0:00:33]}  Rxd5 {[%clk 0:00:34]} 43. Nxd7 {[%clk 0:00:33]}  Rxd7 {[%clk 0:00:35]} 44. Rxb6 {[%clk 0:00:34]}  Rd5 {[%clk 0:00:34]} 45. Rb7+ {[%clk 0:00:33]}  Kd6 {[%clk 0:00:34]} 46. h4 {[%clk 0:00:30]}  Kc6 {[%clk 0:00:33]} 47. Rb8 {[%clk 0:00:28]}  h5 {[%clk 0:00:31]} 48. Kf3 {[%clk 0:00:26]}  Kc5 {[%clk 0:00:23]} 49. Ke2 {[%clk 0:00:24]}  b4 {[%clk 0:00:23]} 50. Rc8+ {[%clk 0:00:23]}  Kb5 {[%clk 0:00:23]} 51. Rb8+ {[%clk 0:00:21]}  Kc4 {[%clk 0:00:23]} 52. Rc8+ {[%clk 0:00:18]}  Rc5 {[%clk 0:00:23]} 53. Rb8 {[%clk 0:00:19]}  Kc3 {[%clk 0:00:22]} 54. Kd1 {[%clk 0:00:18]}  b3 {[%clk 0:00:20]} 55. Kc1 {[%clk 0:00:18]}  Ra5 {[%clk 0:00:19]} 56. Kb1 {[%clk 0:00:18]}  Ra4 {[%clk 0:00:17]} 57. Rb6 {[%clk 0:00:17]}  f4 {[%clk 0:00:13]} 58. exf4 {[%clk 0:00:14]}  exf4 {[%clk 0:00:12]} 59. Rxf6 {[%clk 0:00:15]}  Re4 {[%clk 0:00:10]} 60. Rc6+ {[%clk 0:00:13]}  Kb4 {[%clk 0:00:08]} 61. Rb6+ {[%clk 0:00:13]}  Ka3 {[%clk 0:00:07]} 62. Ra6+ {[%clk 0:00:13]}  Kb4 {[%clk 0:00:07]} 63. Rb6+ {[%clk 0:00:13]}  Kc4 {[%clk 0:00:08]} 64. gxf4 {[%clk 0:00:11]}  Rxf4 {[%clk 0:00:09]} 65. Rc6+ {[%clk 0:00:09]}  Kb5 {[%clk 0:00:06]} 66. Rh6 {[%clk 0:00:09]}  Rxh4 {[%clk 0:00:06]} 67. Kb2 {[%clk 0:00:09]}  Kc4 {[%clk 0:00:07]} 68. Rc6+ {[%clk 0:00:09]}  Kd5 {[%clk 0:00:07]} 69. Rh6 {[%clk 0:00:08]}  Rh3 {[%clk 0:00:07]} 70. Rh8 {[%clk 0:00:06]}  Ke4 {[%clk 0:00:07]} 71. Rf8 {[%clk 0:00:06]}  h4 {[%clk 0:00:06]} 72. f4 {[%clk 0:00:06]}  Rf3 {[%clk 0:00:06]} 73. f5 {[%clk 0:00:03]}  Rxf5 {[%clk 0:00:06]} 74. Re8+ {[%clk 0:00:03]}  Kf3 {[%clk 0:00:06]} 75. Kxb3 {[%clk 0:00:03]}  h3 {[%clk 0:00:07]} 76. Rg8 {[%clk 0:00:03]}  Kf2 {[%clk 0:00:06]} 77. Rh8 {[%clk 0:00:02]}  Rf3+ {[%clk 0:00:07]} 78. Kc2 {[%clk 0:00:01]}  Kg2 {[%clk 0:00:07]} 79. Kd2 {[%clk 0:00:01]}  h2 {[%clk 0:00:08]} 80. Rg8+ {[%clk 0:00:02]}  Rg3 {[%clk 0:00:08]} 81. Rh8 {[%clk 0:00:03]}  h1=Q {[%clk 0:00:08]} 0-1


[Site "https://www.chess.com"]

[Event "Titled Tuesday Blitz June 07 Early 2022"]
[White "Richter, Nils"]
[Black "Salinas Herrera, Pablo"]
[WhiteFideId "12990809"]
[BlackFideId "3407128"]
[WhiteElo "2311"]
[BlackElo "2541"]
[Result "1-0"]
[Round "10"]
[TimeControl "180+1"]
[Date "2022.06.07"]
[WhiteClock "0:00:21"]
[BlackClock "0:00:01"]

1. d4 {[%clk 0:03:00]}  d5 {[%clk 0:02:58]} 2. c4 {[%clk 0:03:01]}  e6 {[%clk 0:02:59]} 3. Nf3 {[%clk 0:03:01]}  a6 {[%clk 0:02:58]} 4. Bg5 {[%clk 0:03:01]}  Be7 {[%clk 0:02:58]} 5. Bxe7 {[%clk 0:02:58]}  Qxe7 {[%clk 0:02:59]} 6. Nbd2 {[%clk 0:02:55]}  Nf6 {[%clk 0:02:58]} 7. g3 {[%clk 0:02:51]}  O-O {[%clk 0:02:55]} 8. Bg2 {[%clk 0:02:52]}  c5 {[%clk 0:02:55]} 9. cxd5 {[%clk 0:02:49]}  exd5 {[%clk 0:02:49]} 10. dxc5 {[%clk 0:02:48]}  Qxc5 {[%clk 0:02:50]} 11. O-O {[%clk 0:02:47]}  Nc6 {[%clk 0:02:50]} 12. Rc1 {[%clk 0:02:47]}  Qb6 {[%clk 0:02:50]} 13. Nb3 {[%clk 0:02:47]}  Be6 {[%clk 0:02:50]} 14. Nbd4 {[%clk 0:02:45]}  Rad8 {[%clk 0:02:50]} 15. b3 {[%clk 0:02:44]}  Rfe8 {[%clk 0:02:49]} 16. Nxe6 {[%clk 0:02:42]}  fxe6 {[%clk 0:02:49]} 17. e3 {[%clk 0:02:42]}  e5 {[%clk 0:02:49]} 18. Nh4 {[%clk 0:02:34]}  e4 {[%clk 0:02:39]} 19. Nf5 {[%clk 0:02:32]}  d4 {[%clk 0:02:40]} 20. Nxd4 {[%clk 0:02:29]}  Nxd4 {[%clk 0:02:41]} 21. exd4 {[%clk 0:02:30]}  Rxd4 {[%clk 0:02:41]} 22. Qc2 {[%clk 0:02:29]}  Red8 {[%clk 0:02:35]} 23. Qc7 {[%clk 0:02:25]}  Qb5 {[%clk 0:01:35]} 24. Rc5 {[%clk 0:02:16]}  Qe2 {[%clk 0:01:34]} 25. Qxb7 {[%clk 0:02:08]}  Qxa2 {[%clk 0:01:05]} 26. Rc7 {[%clk 0:02:03]}  R4d7 {[%clk 0:00:48]} 27. Rxd7 {[%clk 0:02:02]}  Rxd7 {[%clk 0:00:48]} 28. Qc8+ {[%clk 0:01:47]}  Kf7 {[%clk 0:00:48]} 29. Bxe4 {[%clk 0:01:47]}  Re7 {[%clk 0:00:48]} 30. Bd3 {[%clk 0:01:45]}  a5 {[%clk 0:00:28]} 31. b4 {[%clk 0:01:38]}  Qa3 {[%clk 0:00:26]} 32. Bc4+ {[%clk 0:01:38]}  Kg6 {[%clk 0:00:26]} 33. b5 {[%clk 0:01:34]}  Qb4 {[%clk 0:00:22]} 34. Bd3+ {[%clk 0:01:31]}  Kf7 {[%clk 0:00:23]} 35. Rb1 {[%clk 0:01:28]}  Qd4 {[%clk 0:00:19]} 36. Bc4+ {[%clk 0:01:27]}  Kg6 {[%clk 0:00:19]} 37. b6 {[%clk 0:01:26]}  Re8 {[%clk 0:00:17]} 38. b7 {[%clk 0:01:22]}  Qe4 {[%clk 0:00:08]} 39. Rd1 {[%clk 0:01:00]}  Qe5 {[%clk 0:00:06]} 40. Bd3+ {[%clk 0:00:53]}  Kh6 {[%clk 0:00:06]} 41. Rb1 {[%clk 0:00:49]}  Qd5 {[%clk 0:00:03]} 42. b8=Q {[%clk 0:00:41]}  Rxc8 {[%clk 0:00:03]} 43. Qxc8 {[%clk 0:00:42]}  Qxd3 {[%clk 0:00:03]} 44. Qh3+ {[%clk 0:00:32]}  Kg6 {[%clk 0:00:03]} 45. Qf1 {[%clk 0:00:31]}  Qd4 {[%clk 0:00:03]} 46. Rd1 {[%clk 0:00:32]}  Qb4 {[%clk 0:00:03]} 47. Qd3+ {[%clk 0:00:32]}  Kh6 {[%clk 0:00:04]} 48. Rb1 {[%clk 0:00:32]}  Qf8 {[%clk 0:00:02]} 49. Qe3+ {[%clk 0:00:32]}  Kg6 {[%clk 0:00:03]} 50. Rb5 {[%clk 0:00:33]}  Qd8 {[%clk 0:00:02]} 51. Qg5+ {[%clk 0:00:30]}  Kf7 {[%clk 0:00:02]} 52. Rb7+ {[%clk 0:00:31]}  Ke6 {[%clk 0:00:02]} 53. Qe3+ {[%clk 0:00:29]}  Kf5 {[%clk 0:00:01]} 54. Qf3+ {[%clk 0:00:28]}  Kg6 {[%clk 0:00:01]} 55. Kg2 {[%clk 0:00:26]}  h5 {[%clk 0:00:02]} 56. h4 {[%clk 0:00:25]}  Qd4 {[%clk 0:00:02]} 57. Rb5 {[%clk 0:00:21]}  Qd7 {[%clk 0:00:01]} 58. Rxa5 {[%clk 0:00:21]} 1-0


[Site "https://www.chess.com"]

[Event "Titled Tuesday Blitz June 07 Early 2022"]
[White "Rosen, Eric"]
[Black "Zhigalko, Sergei"]
[WhiteFideId "2032562"]
[BlackFideId "13502956"]
[WhiteElo "2362"]
[BlackElo "2662"]
[Result "0-1"]
[Round "10"]
[TimeControl "180+1"]
[Date "2022.06.07"]
[WhiteClock "0:00:05"]
[BlackClock "0:00:02"]

1. d4 {[%clk 0:03:00]}  Nf6 {[%clk 0:03:00]} 2. Bf4 {[%clk 0:02:59]}  e6 {[%clk 0:02:59]} 3. e3 {[%clk 0:02:59]}  d5 {[%clk 0:02:56]} 4. Nf3 {[%clk 0:02:59]}  Bd6 {[%clk 0:02:56]} 5. Ne5 {[%clk 0:02:59]}  O-O {[%clk 0:02:50]} 6. Nd2 {[%clk 0:02:58]}  c5 {[%clk 0:02:29]} 7. c3 {[%clk 0:02:54]}  Nc6 {[%clk 0:02:23]} 8. Bd3 {[%clk 0:02:53]}  h6 {[%clk 0:02:04]} 9. O-O {[%clk 0:02:47]}  Qc7 {[%clk 0:01:56]} 10. Ndf3 {[%clk 0:02:46]}  Ne4 {[%clk 0:01:37]} 11. Nxc6 {[%clk 0:02:41]}  Bxf4 {[%clk 0:01:33]} 12. exf4 {[%clk 0:02:41]}  bxc6 {[%clk 0:01:23]} 13. Qc1 {[%clk 0:02:40]}  a5 {[%clk 0:01:18]} 14. Re1 {[%clk 0:02:39]}  f5 {[%clk 0:00:51]} 15. Ne5 {[%clk 0:02:38]}  Ba6 {[%clk 0:00:51]} 16. Bxe4 {[%clk 0:02:38]}  fxe4 {[%clk 0:00:48]} 17. g3 {[%clk 0:02:08]}  Rab8 {[%clk 0:00:38]} 18. b3 {[%clk 0:02:05]}  Rb5 {[%clk 0:00:30]} 19. Qa3 {[%clk 0:02:00]}  cxd4 {[%clk 0:00:16]} 20. cxd4 {[%clk 0:02:00]}  c5 {[%clk 0:00:17]} 21. Rac1 {[%clk 0:01:58]}  Rc8 {[%clk 0:00:17]} 22. Rc2 {[%clk 0:01:16]}  Qa7 {[%clk 0:00:17]} 23. Rec1 {[%clk 0:01:16]}  c4 {[%clk 0:00:18]} 24. bxc4 {[%clk 0:01:15]}  dxc4 {[%clk 0:00:19]} 25. Nxc4 {[%clk 0:01:10]}  Qxd4 {[%clk 0:00:17]} 26. Qe7 {[%clk 0:00:31]}  Qf6 {[%clk 0:00:08]} 27. Qa7 {[%clk 0:00:15]}  Bb7 {[%clk 0:00:08]} 28. Ne3 {[%clk 0:00:13]}  Rxc2 {[%clk 0:00:07]} 29. Rxc2 {[%clk 0:00:14]}  Rb1+ {[%clk 0:00:04]} 30. Kg2 {[%clk 0:00:15]}  Qa1 {[%clk 0:00:04]} 31. Rc7 {[%clk 0:00:13]}  Qb2 {[%clk 0:00:02]} 32. Qb8+ {[%clk 0:00:12]}  Kh7 {[%clk 0:00:02]} 33. Qf8 {[%clk 0:00:12]}  Ba6 {[%clk 0:00:01]} 34. Nc4 {[%clk 0:00:06]}  Bxc4 {[%clk 0:00:01]} 35. Rxc4 {[%clk 0:00:07]}  Qe2 {[%clk 0:00:01]} 36. Rc7 {[%clk 0:00:05]}  Qf1# {[%clk 0:00:02]} 0-1


[Site "https://www.chess.com"]

[Event "Titled Tuesday Blitz June 07 Early 2022"]
[White "Sadhwani, Raunak"]
[Black "Matinian, Nikita"]
[WhiteFideId "35093487"]
[BlackFideId "24129100"]
[WhiteElo "2616"]
[BlackElo "2422"]
[Result "0-1"]
[Round "10"]
[TimeControl "180+1"]
[Date "2022.06.07"]
[WhiteClock "0:00:11"]
[BlackClock "0:00:02"]

1. e4 {[%clk 0:03:00]}  e5 {[%clk 0:02:59]} 2. Nf3 {[%clk 0:03:01]}  Nc6 {[%clk 0:02:59]} 3. Bb5 {[%clk 0:03:02]}  a6 {[%clk 0:02:59]} 4. Ba4 {[%clk 0:03:02]}  Nf6 {[%clk 0:02:59]} 5. d3 {[%clk 0:03:02]}  Bc5 {[%clk 0:02:58]} 6. c3 {[%clk 0:03:02]}  O-O {[%clk 0:02:52]} 7. O-O {[%clk 0:02:46]}  Re8 {[%clk 0:02:47]} 8. Bg5 {[%clk 0:02:45]}  h6 {[%clk 0:02:46]} 9. Bh4 {[%clk 0:02:45]}  b5 {[%clk 0:02:41]} 10. Bc2 {[%clk 0:02:43]}  Be7 {[%clk 0:02:41]} 11. Re1 {[%clk 0:02:38]}  d6 {[%clk 0:02:30]} 12. Nbd2 {[%clk 0:02:37]}  g6 {[%clk 0:02:09]} 13. Nf1 {[%clk 0:02:36]}  Nh5 {[%clk 0:02:09]} 14. Bg3 {[%clk 0:02:36]}  Bf6 {[%clk 0:02:01]} 15. Ne3 {[%clk 0:02:36]}  Nxg3 {[%clk 0:01:54]} 16. fxg3 {[%clk 0:02:31]}  Bg7 {[%clk 0:01:54]} 17. Rf1 {[%clk 0:02:31]}  Be6 {[%clk 0:01:43]} 18. Bb3 {[%clk 0:02:32]}  Qd7 {[%clk 0:01:24]} 19. h4 {[%clk 0:02:28]}  Ne7 {[%clk 0:01:16]} 20. h5 {[%clk 0:02:22]}  c6 {[%clk 0:01:15]} 21. Nh4 {[%clk 0:02:03]}  d5 {[%clk 0:01:12]} 22. Qf3 {[%clk 0:02:03]}  Rf8 {[%clk 0:00:54]} 23. g4 {[%clk 0:02:02]}  d4 {[%clk 0:00:47]} 24. cxd4 {[%clk 0:01:51]}  exd4 {[%clk 0:00:45]} 25. Nef5 {[%clk 0:01:20]}  gxf5 {[%clk 0:00:44]} 26. gxf5 {[%clk 0:01:20]}  Bxb3 {[%clk 0:00:44]} 27. f6 {[%clk 0:01:21]}  Be6 {[%clk 0:00:40]} 28. Qg3 {[%clk 0:01:21]}  Bg4 {[%clk 0:00:30]} 29. fxg7 {[%clk 0:01:14]}  Rfe8 {[%clk 0:00:26]} 30. Rf6 {[%clk 0:01:11]}  Bxh5 {[%clk 0:00:22]} 31. Qf4 {[%clk 0:01:02]}  Qg4 {[%clk 0:00:14]} 32. Qf2 {[%clk 0:00:59]}  Qxg7 {[%clk 0:00:13]} 33. Rf1 {[%clk 0:00:59]}  Bg6 {[%clk 0:00:10]} 34. Rf3 {[%clk 0:00:55]}  Kh7 {[%clk 0:00:09]} 35. Nxg6 {[%clk 0:00:37]}  Qxg6 {[%clk 0:00:10]} 36. Rf6 {[%clk 0:00:34]}  Qg5 {[%clk 0:00:06]} 37. Rxf7+ {[%clk 0:00:33]}  Kg8 {[%clk 0:00:07]} 38. Qxd4 {[%clk 0:00:31]}  Rf8 {[%clk 0:00:04]} 39. Qf2 {[%clk 0:00:23]}  Rxf7 {[%clk 0:00:04]} 40. Qxf7+ {[%clk 0:00:24]}  Kh8 {[%clk 0:00:05]} 41. Rf2 {[%clk 0:00:22]}  Rg8 {[%clk 0:00:05]} 42. Qe6 {[%clk 0:00:18]}  Rg7 {[%clk 0:00:03]} 43. d4 {[%clk 0:00:15]}  Qc1+ {[%clk 0:00:03]} 44. Kh2 {[%clk 0:00:15]}  Qg5 {[%clk 0:00:04]} 45. e5 {[%clk 0:00:11]}  Kh7 {[%clk 0:00:03]} 46. Kg1 {[%clk 0:00:11]}  Qc1+ {[%clk 0:00:02]} 47. Kh2 {[%clk 0:00:12]}  Ng6 {[%clk 0:00:03]} 48. Qxc6 {[%clk 0:00:11]}  Qxc6 {[%clk 0:00:02]} 0-1


[Site "https://www.chess.com"]

[Event "Titled Tuesday Blitz June 07 Early 2022"]
[White "Sargsyan, Anna M."]
[Black "Sapunov, Evgeny"]
[WhiteFideId "13308130"]
[BlackFideId "4126661"]
[WhiteElo "2271"]
[BlackElo "2470"]
[Result "0-1"]
[Round "10"]
[TimeControl "180+1"]
[Date "2022.06.07"]
[WhiteClock "0:00:03"]
[BlackClock "0:00:32"]

1. d4 {[%clk 0:03:00]}  Nf6 {[%clk 0:02:59]} 2. c4 {[%clk 0:03:01]}  g6 {[%clk 0:02:59]} 3. Nf3 {[%clk 0:03:02]}  Bg7 {[%clk 0:02:58]} 4. g3 {[%clk 0:03:02]}  O-O {[%clk 0:02:58]} 5. Bg2 {[%clk 0:03:02]}  d6 {[%clk 0:02:59]} 6. Nc3 {[%clk 0:03:01]}  Nbd7 {[%clk 0:02:59]} 7. O-O {[%clk 0:03:01]}  e5 {[%clk 0:02:59]} 8. e4 {[%clk 0:03:02]}  c6 {[%clk 0:02:59]} 9. h3 {[%clk 0:03:02]}  exd4 {[%clk 0:02:58]} 10. Nxd4 {[%clk 0:03:03]}  Re8 {[%clk 0:02:58]} 11. Re1 {[%clk 0:03:04]}  Qb6 {[%clk 0:02:57]} 12. Be3 {[%clk 0:02:24]}  Qxb2 {[%clk 0:02:41]} 13. Nde2 {[%clk 0:01:43]}  Ne5 {[%clk 0:02:17]} 14. Bd4 {[%clk 0:01:36]}  Qb4 {[%clk 0:02:11]} 15. Rb1 {[%clk 0:01:18]}  Qa5 {[%clk 0:02:11]} 16. Qb3 {[%clk 0:01:13]}  Nfd7 {[%clk 0:01:54]} 17. Red1 {[%clk 0:00:55]}  Nc5 {[%clk 0:01:50]} 18. Qc2 {[%clk 0:00:55]}  Nxc4 {[%clk 0:01:32]} 19. Bxg7 {[%clk 0:00:55]}  Kxg7 {[%clk 0:01:32]} 20. Rbc1 {[%clk 0:00:38]}  Bd7 {[%clk 0:01:15]} 21. Nf4 {[%clk 0:00:33]}  b5 {[%clk 0:01:01]} 22. Nce2 {[%clk 0:00:33]}  Qd8 {[%clk 0:00:49]} 23. Nd4 {[%clk 0:00:20]}  Qf6 {[%clk 0:00:47]} 24. e5 {[%clk 0:00:13]}  dxe5 {[%clk 0:00:47]} 25. Nb3 {[%clk 0:00:09]}  Bf5 {[%clk 0:00:36]} 26. Qc3 {[%clk 0:00:03]}  Na4 {[%clk 0:00:32]} 0-1


[Site "https://www.chess.com"]

[Event "Titled Tuesday Blitz June 07 Early 2022"]
[White "Svane, Rasmus"]
[Black "Grischuk, Alexander"]
[WhiteFideId "4657101"]
[BlackFideId "4126025"]
[WhiteElo "2674"]
[BlackElo "2762"]
[Result "1-0"]
[Round "10"]
[TimeControl "180+1"]
[Date "2022.06.07"]
[WhiteClock "0:00:10"]
[BlackClock "0:00:01"]

1. Nf3 {[%clk 0:03:00]}  Nf6 {[%clk 0:02:56]} 2. g3 {[%clk 0:03:01]}  c5 {[%clk 0:02:56]} 3. Bg2 {[%clk 0:03:01]}  Nc6 {[%clk 0:02:56]} 4. c4 {[%clk 0:03:02]}  d5 {[%clk 0:02:56]} 5. cxd5 {[%clk 0:03:02]}  Nxd5 {[%clk 0:02:56]} 6. Nc3 {[%clk 0:03:03]}  g6 {[%clk 0:02:57]} 7. O-O {[%clk 0:02:58]}  Bg7 {[%clk 0:02:57]} 8. Nxd5 {[%clk 0:02:58]}  Qxd5 {[%clk 0:02:58]} 9. d3 {[%clk 0:02:59]}  O-O {[%clk 0:02:58]} 10. Be3 {[%clk 0:02:59]}  Bxb2 {[%clk 0:02:57]} 11. Rb1 {[%clk 0:02:54]}  Bf6 {[%clk 0:02:55]} 12. Qa4 {[%clk 0:02:44]}  Qd7 {[%clk 0:02:32]} 13. Rfc1 {[%clk 0:02:34]}  b6 {[%clk 0:02:19]} 14. Nd2 {[%clk 0:02:24]}  Bb7 {[%clk 0:01:48]} 15. Ne4 {[%clk 0:02:22]}  Rab8 {[%clk 0:01:30]} 16. Bxc5 {[%clk 0:01:51]}  Bg7 {[%clk 0:00:57]} 17. Be3 {[%clk 0:01:42]}  Rfc8 {[%clk 0:00:56]} 18. h4 {[%clk 0:01:31]}  h6 {[%clk 0:00:49]} 19. Bf4 {[%clk 0:01:29]}  Ra8 {[%clk 0:00:38]} 20. Kh2 {[%clk 0:01:28]}  Qd8 {[%clk 0:00:34]} 21. Bh3 {[%clk 0:01:24]}  f5 {[%clk 0:00:33]} 22. Nc5 {[%clk 0:01:20]}  bxc5 {[%clk 0:00:27]} 23. Rxb7 {[%clk 0:01:20]}  Nd4 {[%clk 0:00:26]} 24. Qd1 {[%clk 0:00:53]}  a5 {[%clk 0:00:18]} 25. e3 {[%clk 0:00:50]}  Ne6 {[%clk 0:00:11]} 26. Qb3 {[%clk 0:00:49]}  Ra6 {[%clk 0:00:12]} 27. h5 {[%clk 0:00:49]}  Kh8 {[%clk 0:00:11]} 28. hxg6 {[%clk 0:00:47]}  Nxf4 {[%clk 0:00:11]} 29. exf4 {[%clk 0:00:33]}  Rf6 {[%clk 0:00:11]} 30. Re1 {[%clk 0:00:32]}  Bf8 {[%clk 0:00:08]} 31. Re5 {[%clk 0:00:31]}  Qd4 {[%clk 0:00:07]} 32. Kg2 {[%clk 0:00:27]}  c4 {[%clk 0:00:07]} 33. dxc4 {[%clk 0:00:27]}  Qd6 {[%clk 0:00:04]} 34. Bxf5 {[%clk 0:00:21]}  Rxf5 {[%clk 0:00:03]} 35. Rxf5 {[%clk 0:00:22]}  Qxg6 {[%clk 0:00:04]} 36. Rd5 {[%clk 0:00:17]}  Qc6 {[%clk 0:00:03]} 37. Qb5 {[%clk 0:00:15]}  Qg6 {[%clk 0:00:04]} 38. Re5 {[%clk 0:00:12]}  Qd3 {[%clk 0:00:01]} 39. Qd5 {[%clk 0:00:12]}  Qg6 {[%clk 0:00:01]} 40. Qe4 {[%clk 0:00:11]}  Qf6 {[%clk 0:00:01]} 41. Re6 {[%clk 0:00:11]}  Qg7 {[%clk 0:00:01]} 42. Rbxe7 {[%clk 0:00:10]}  Bxe7 {[%clk 0:00:01]} 43. Rxe7 {[%clk 0:00:10]} 1-0


[Site "https://www.chess.com"]